lending/lending_fUSD_20240908
["ID","MTS","AMOUNT","RATE_DAILY","PERIOD"]
[337554487,1725808232323,-571.79239332,0.000143,5]
[337554488,1725808232333,-200.0,0.000144,5]
[337554489,1725808232343,-184.784289,0.0001443,2]
[337554490,1725808232353,-200.0,0.000145,5]
[337554491,1725808232363,-415.99495571,0.00014529,2]
[337554492,1725808232372,-200.0,0.000146,5]
[337554493,1725808232382,-198.66054299,0.00014682,2]
[337554494,1725808232392,-332.73818245,0.00014688,2]
[337554495,1725808232401,-200.0,0.000147,5]
[337554496,1725808232411,-332.73818242,0.00014712,2]
[337554497,1725808232420,-332.73818242,0.00014735,2]
[337554498,1725808232430,-332.73818242,0.00014759,2]
[337554499,1725808232439,-245.97,0.00014765,3]
[337554500,1725808232449,-737.96,0.00014765,3]
[337554501,1725808232458,-160.212,0.00014765,2]
[337554502,1725808232477,-150.0,0.00014774,2]
[337554503,1725808232487,-3587.39683542,0.00014775,2]
[337554504,1725808232499,-563.10986677,0.00014775,2]
[337554506,1725808232510,-2423.19949662,0.00014775,2]
[337554509,1725808232671,-3186.70346721,0.00014775,2]
[337554510,1725808232682,-562.21440665,0.00014775,2]
[337554511,1725808232693,-258303.59576634,0.00014775,2]
[337554512,1725808232702,-332.73818242,0.00014782,2]
[337554513,1725808232717,-150.0,0.00014788,2]
[337554514,1725808232726,-198.66054297,0.00014791,2]
[337554515,1725808232735,-1000.0,0.000148,3]
[337554516,1725808232744,-1000.0,0.000148,4]
[337554517,1725808232754,-1000.0,0.000148,5]
[337554518,1725808232763,-752.34,0.000148,2]
[337554519,1725808232773,-752.34,0.000148,2]
[337554520,1725808232782,-484.03,0.000148,2]
[337554521,1725808232791,-973.0,0.000148,5]
[337554522,1725808232802,-332.73818242,0.00014806,2]
[337554523,1725808232812,-150.0,0.00014808,2]
[337554524,1725808232822,-150.0,0.00014825,2]
[337554525,1725808232831,-332.73818242,0.00014829,2]
[337554526,1725808232840,-193.112,0.00014841,2]
[337554527,1725808232851,-483.541,0.00014841,2]
[337554528,1725808232860,-1978.90719,0.0001485,2]
[337554529,1725808232870,-332.73818242,0.00014853,2]
[337554530,1725808232881,-150.0,0.00014873,2]
[337554531,1725808232891,-332.73818242,0.00014876,2]
[337554532,1725808232901,-426.49541603,0.00014888,5]
[337554533,1725808232911,-172.529219,0.000149,2]
[337554534,1725808232921,-176.22845629,0.000149,2]
[337554535,1725808232932,-205.304222,0.000149,2]
[337554536,1725808232942,-332.73818242,0.000149,2]
[337554537,1725808232952,-207.18950648,0.000149,2]
[337554538,1725808232965,-198.66054297,0.000149,2]
[337554539,1725808232974,-500.0,0.00014904,2]
[337554540,1725808232984,-6214.8410451,0.0001497,3]
[337554541,1725808232993,-500.0,0.00014973,2]
[337554542,1725808233003,-200.0,0.00014973,2]
[337554543,1725808233012,-500.0,0.00014973,2]
[337554544,1725808233022,-11186.7138812,0.00014979,3]
[337554545,1725808233031,-11186.7138812,0.0001498,3]
[337554546,1725808233040,-151.06,0.0001498,2]
[337554547,1725808233291,-46252.5963677,0.0001498,3]
[337554548,1725808233315,-260.97789029,0.00014988,2]
[337554549,1725808233325,-15417.5321226,0.00014988,3]
[337554550,1725808233334,-32970.47576908,0.00014989,3]
[337554551,1725808233347,-862.70147104,0.00014989,3]
[337554552,1725808233373,-400.0,0.00014989,3]
[337554553,1725808233385,-295.33202042,0.00014989,3]
[337554554,1725808233397,-552.99499924,0.00014989,3]
[337554555,1725808233409,-1090.18039748,0.00014989,3]
[337554556,1725808233420,-493.17749046,0.00014989,3]
[337554557,1725808233433,-1895.56766088,0.00014989,3]
[337554558,1725808233444,-549.52917014,0.00014989,3]
[337554559,1725808233648,-326.80050338,0.00014989,3]
[337554560,1725808234388,463.8,0.0001399,2]
[337554566,1725808238572,-463.8,0.0001419,2]
[337554567,1725808238581,-463.8,0.0001419,2]
[337554568,1725808238591,-463.8,0.0001419,2]
[337554569,1725808238600,-373.6,0.0001429,2]
[337554570,1725808238622,-90.2,0.0001429,2]
[337554572,1725808238632,-463.8,0.00014678,2]
[337554573,1725808238641,-463.8,0.00014765,2]
[337554574,1725808238650,-463.8,0.00014765,2]
[337554575,1725808238660,-368.4,0.00014765,2]
[337554576,1725808238671,-95.4,0.00014765,2]
[337554578,1725808238681,-463.8,0.00014765,2]
[337554580,1725808238690,-955.43437236,0.00014989,3]
[337554582,1725808238701,-855.00599979,0.00014989,3]
[337554585,1725808238723,-5505.21942321,0.00014989,3]
[337554586,1725808238735,-30335.24133542,0.00014989,3]
[337554587,1725808238744,-6587.94966434,0.0001499,3]
[337554588,1725808238755,-645.49882476,0.0001499,3]
[337554589,1725808238767,-14748.76972363,0.0001499,3]
[337554590,1725808238778,-451.57864314,0.0001499,3]
[337554591,1725808238790,-67671.05201514,0.0001499,3]
[337554592,1725808238847,-452.64,0.0001499,3]
[337554593,1725808238858,-870.0340065,0.0001499,3]
[337554594,1725808238869,-1077.66985799,0.0001499,3]
[337554595,1725808238879,-208.0,0.0001499,2]
[337554596,1725808238888,-4468.12672031,0.0001499,3]
[337554597,1725808238899,-854.34805812,0.0001499,3]
[337554598,1725808238910,-1372.2,0.0001499,3]
[337554599,1725808238921,-880.12,0.0001499,3]
[337554600,1725808239194,-955.97027776,0.0001499,3]
[337554601,1725808239208,-4936.4916975,0.0001499,3]
[337554602,1725808240350,-1907.99778019,0.0001499,3]
[337554603,1725808240362,-1370.37733886,0.0001499,3]
[337554604,1725808240373,-500.0,0.0001499,3]
[337554605,1725808240384,-681.43362743,0.0001499,3]
[337554606,1725808240395,-1986.15335335,0.0001499,3]
[337554607,1725808240406,-489.17891229,0.0001499,3]
[337554608,1725808240417,-818.06656972,0.0001499,3]
[337554609,1725808240439,-6470.21366277,0.0001499,3]
[337554610,1725808240450,-2400.0,0.0001499,3]
[337554611,1725808240473,-20514.17666577,0.0001499,3]
[337554612,1725808240486,-20025.38136725,0.0001499,3]
[337554613,1725808240502,-8289.3,0.0001499,3]
[337554614,1725808240518,-4696.00000006,0.0001499,3]
[337554615,1725808240530,-6496.46948832,0.0001499,3]
[337554616,1725808240541,-511.70455756,0.0001499,3]
[337554617,1725808240553,-774.21927382,0.0001499,3]
[337554618,1725808240564,-31942.32762992,0.0001499,3]
[337554619,1725808240574,-161.8025762,0.00014998,2]
[337554620,1725808240583,-315.2382448,0.00014998,2]
[337554621,1725808240593,-28332.41412583,0.00014999,5]
[337554622,1725808240605,-530.86535505,0.00014999,5]
[337554623,1725808240668,-103180.6578123,0.00014999,5]
[337554624,1725808240678,-156.383142,0.00014999,5]
[337554625,1725808240688,-6896.9955058,0.00014999,2]
[337554626,1725808240697,-176.16722891,0.00014999,2]
[337554627,1725808240707,-418.7771,0.00014999,2]
[337554628,1725808240717,-150.51745403,0.00014999,2]
[337554629,1725808240727,-150.0,0.00014999,2]
[337554630,1725808240736,-798.0,0.00014999,2]
[337554631,1725808240747,-83019.22426429,0.00015,2]
[337554632,1725808240758,-406.8807688,0.00015,2]
[337554633,1725808240792,-276.67,0.00015,2]
[337554634,1725808240804,-9970.48864548,0.00015,2]
[337554635,1725808240815,-539.13340814,0.00015,2]
[337554766,1725808243367,-204.63828779,0.00014899,2]
[337554767,1725808243376,-184.38250733,0.00015,2]
[337554768,1725808243388,-28967.6829733,0.00015,2]
[337554769,1725808243770,-292.35005528,0.00015,2]
[337554770,1725808243781,-4123.86206575,0.00015,2]
[337554771,1725808243813,-1261.31414876,0.00015,2]
[337554772,1725808243825,-73360.21223202,0.00015,2]
[337554773,1725808243834,-1691388.56027428,0.00015,2]
[337554779,1725808246496,-721.0,0.00015,2]
[337554780,1725808246506,-21546.85823743,0.00015,2]
[337554781,1725808246515,-15272.82714608,0.00015,2]
[337554782,1725808246527,-47893.10231553,0.00015,2]
[337554783,1725808246538,-46433.12669752,0.00015,2]
[337554784,1725808246549,-498.62,0.00015,2]
[337554785,1725808246562,-1637.91874237,0.00015,2]
[337554786,1725808246572,-3559.9489424,0.00015,2]
[337554787,1725808246586,-65074.70554683,0.00015,2]
[337554788,1725808246597,-842.7234119,0.00015,2]
[337554789,1725808246668,-1655.02155847,0.00015,2]
[337554790,1725808246702,-2762.03464261,0.00015,2]
[337554807,1725808293566,261.81,0.00012224,2]
[337554808,1725808295724,593.7590321,0.00012164,2]
[337554809,1725808348192,164.72,0.00013699,2]
[337554810,1725808348647,750.0,0.00011,2]
[337554811,1725808349594,800.0,0.00013,2]
[337554812,1725808400342,214.0,0.0001392,2]
[337554813,1725808400605,214.0,0.0001375,2]
[337554814,1725808400749,214.0,0.0001357,2]
[337554815,1725808400964,214.0,0.000134,2]
[337554816,1725808401145,214.0,0.0001323,2]
[337554817,1725808401363,214.0,0.0001305,2]
[337554818,1725808401780,214.0,0.0001288,2]
[337554819,1725808402119,214.0,0.000127,2]
[337554820,1725808408511,174.37,0.00013968,2]
[337554821,1725808417150,840.0,0.00013968,2]
[337554822,1725808418594,500.0,0.00013968,2]
[337554823,1725808473354,250.0,0.00013949,2]
[337554824,1725808480528,500.0,0.00012164,2]
[337554825,1725808486575,500.0,0.00012164,2]
[337554826,1725808505319,500.0,0.00012164,2]
[337554827,1725808515241,200.0,0.00013894,2]
[337554828,1725808524555,500.0,0.00012164,2]
[337554829,1725808526975,5542.88,0.00013894,2]
[337554830,1725808598822,546.08,0.00013894,2]
[337554831,1725808672253,6073.48838567,0.00013897,2]
[337554832,1725808672277,25000.0,0.00013897,2]
[337554833,1725808672299,25000.0,0.00013897,2]
[337554834,1725808960697,500.0,0.00013459,2]
[337554835,1725809028486,250.0,0.00013391,2]
[337554836,1725809109022,18976.05,0.00013,2]
[337554837,1725809130654,7747.58575002,0.000101,2]
[337554838,1725809146021,156.383142,0.00025,60]
[337554839,1725809175421,248.71,0.00011703,2]
[337554840,1725809186914,491.94,0.00010959,2]
[337554860,1725809340630,500.0,0.00011,2]
[337554861,1725809352963,500.0,0.00011,2]
[337554862,1725809358477,-150.0,0.00012999,2]
[337554863,1725809358510,-7614.80058753,0.00013,2]
[337554864,1725809358585,-7764.80058753,0.00013,2]
[337554865,1725809359051,-7576.42941514,0.00013,2]
[337554866,1725809359104,-7764.80058753,0.00013,2]
[337554867,1725809359168,-7764.80058753,0.00013,2]
[337554868,1725809359235,-7764.80058753,0.00013,2]
[337554869,1725809362397,500.0,0.00012,2]
[337554870,1725809383679,-188.87,0.000129,2]
[337554871,1725809383713,-5030.51302944,0.00013,2]
[337554872,1725809388167,500.0,0.00012,2]
[337554963,1725809396596,500.0,0.00012,2]
[337554964,1725809408354,-1395.9954304,0.000129,2]
[337554972,1725809432456,-77.47915179,0.000129,2]
[337554973,1725809432466,-500.0,0.000129,2]
[337554974,1725809432475,-300.0,0.00012999,2]
[337554975,1725809432485,-150.0,0.00012999,2]
[337554976,1725809432495,-8914.67334083,0.00013,2]
[337554977,1725809432506,-446.76111519,0.00013,2]
[337554978,1725809432519,-7631.28992824,0.00013,2]
[337554979,1725809432535,-275.1408984,0.00013,2]
[337554980,1725809432616,-577.5783648,0.00013,2]
[337555010,1725809438338,-296.50190526,0.00013,2]
[337555024,1725809438461,-14042.43253206,0.00013,2]
[337555026,1725809438473,-879.14563992,0.00013,2]
[337555027,1725809438484,-1807.79381528,0.00013,2]
[337555028,1725809438495,-54150.00000001,0.00013,2]
[337555029,1725809438506,-702.12138426,0.00013,2]
[337555030,1725809438518,-15061.86977785,0.00013,2]
[337555031,1725809438529,-2073.02859093,0.00013,2]
[337555032,1725809438539,-3469.9050592,0.00013,2]
[337555033,1725809438551,-2646.2132724,0.00013,2]
[337555034,1725809438571,-1120.66502401,0.00013,2]
[337555035,1725809438583,-5485.0,0.00013,2]
[337555036,1725809438638,-511.0935016,0.00013,2]
[337555045,1725809438871,-99847.06290208,0.00013,2]
[337555047,1725809438881,-300.0,0.00013,2]
[337555049,1725809438890,-500.0,0.00013,2]
[337555050,1725809438900,-1473.47458217,0.00013122,2]
[337555051,1725809438909,-1473.47458217,0.00013344,2]
[337555052,1725809438919,-1473.47458217,0.00013567,2]
[337555053,1725809438928,-153.8,0.0001362,2]
[337555054,1725809438937,-164.72,0.00013699,2]
[337555055,1725809438947,-30995.35,0.00013699,2]
[337555056,1725809438960,-2751.0,0.00013699,2]
[337555057,1725809438969,-1268.1981676,0.00013699,2]
[337555058,1725809438978,-189.29,0.00013719,2]
[337555059,1725809438988,-672.0,0.00013751,2]
[337555060,1725809438998,-328.0,0.00013779,2]
[337555061,1725809439007,-150.99,0.00013779,2]
[337555062,1725809439017,-1473.47458217,0.00013789,2]
[337555063,1725809439026,-321.0028,0.00013796,2]
[337555064,1725809439035,-175.56,0.00013821,2]
[337555065,1725809439044,-9422.52238799,0.00013879,2]
[337555066,1725809439054,-336.15,0.00013888,2]
[337555067,1725809439063,-248.71,0.00013966,2]
[337555068,1725809439073,-1473.47458217,0.00014011,2]
[337555069,1725809439082,-176.25,0.00014073,2]
[337555070,1725809439091,-214.0,0.0001409,2]
[337555071,1725809439100,-5705.17495405,0.00014094,3]
[337555072,1725809439109,-255.0,0.00014104,2]
[337555073,1725809439119,-609.0,0.00014192,2]
[337555074,1725809439128,-150.0,0.00014192,2]
[337555075,1725809439137,-300.0,0.00014192,2]
[337555076,1725809439146,-150.0,0.00014192,2]
[337555077,1725809439155,-427.56,0.00014192,2]
[337555078,1725809439165,-173.13,0.00014192,2]
[337555079,1725809439174,-427.56,0.00014192,2]
[337555080,1725809439183,-150.0,0.00014192,2]
[337555081,1725809439193,-150.0,0.00014192,2]
[337555082,1725809439206,-427.56,0.00014192,2]
[337555083,1725809439215,-150.0,0.00014192,2]
[337555084,1725809439224,-150.0,0.00014192,2]
[337555085,1725809439234,-150.0,0.00014192,2]
[337555086,1725809439243,-427.56,0.00014192,2]
[337555087,1725809439252,-150.0,0.00014192,2]
[337555088,1725809439261,-150.0,0.00014192,2]
[337555089,1725809439270,-427.56,0.00014192,2]
[337555090,1725809439280,-150.0,0.00014192,2]
[337555091,1725809439289,-150.0,0.00014192,2]
[337555092,1725809439297,-150.0,0.00014192,2]
[337555093,1725809439306,-1473.47458217,0.00014233,2]
[337555094,1725809439316,-420.0,0.00014256,2]
[337555095,1725809439327,-214.0,0.0001427,2]
[337555096,1725809439338,-214.0,0.0001444,2]
[337555097,1725809439348,-1473.47458217,0.00014456,2]
[337555098,1725809439357,-1081.38418489,0.000145,2]
[337555099,1725809439368,-150.75,0.00014552,2]
[337555100,1725809439378,-336.15,0.00014583,2]
[337555101,1725809439388,-418.6212812,0.00014609,2]
[337555102,1725809439397,-214.0,0.0001461,2]
[337555103,1725809439407,-624.0,0.00014631,2]
[337555104,1725809439417,-1144.0,0.00014631,2]
[337555105,1725809439426,-1546.0,0.00014631,2]
[337555106,1725809439435,-5705.17495405,0.00014665,3]
[337555107,1725809439445,-4966.5905,0.00014675,2]
[337555108,1725809439460,-400.8773,0.00014675,2]
[337555109,1725809439471,-1473.47458217,0.00014678,2]
[337555110,1725809439481,-6744.16366277,0.0001468,2]
[337555111,1725809439491,-150.0,0.00014729,2]
[337555112,1725809439501,-150.0,0.00014731,2]
[337555113,1725809439511,-155.911,0.00014731,2]
[337555114,1725809439521,-5705.17495405,0.00014732,3]
[337555115,1725809439531,-150.0,0.00014769,2]
[337555116,1725809439540,-162.28428246,0.00014773,2]
[337555117,1725809439549,-150.0,0.00014774,2]
[337555118,1725809439559,-1599.32186033,0.00014775,2]
[337555119,1725809439569,-150.0,0.00014783,2]
[337555120,1725809439579,-5705.17495405,0.00014786,3]
[337555121,1725809439589,-214.0,0.0001479,2]
[337555122,1725809439600,-4696.80066363,0.0001479,2]
[337555123,1725809439613,-647.28952379,0.0001479,2]
[337555124,1725809439625,-2125.91981258,0.0001479,2]
[337555125,1725809439635,-150.0,0.00014797,2]
[337555126,1725809439646,-150.0,0.00014821,2]
[337555127,1725809439656,-11410.3499081,0.00014831,3]
[337555128,1725809439666,-150.0,0.0001484,2]
[337555129,1725809439677,-557.0,0.00014841,2]
[337555130,1725809439687,-931.0,0.00014841,2]
[337555131,1725809439698,-810.0,0.00014841,2]
[337555132,1725809439709,-552.0,0.00014841,2]
[337555133,1725809439720,-1899.0,0.00014841,2]
[337555134,1725809439730,-751.596,0.00014841,2]
[337555135,1725809439741,-248.0,0.00014841,2]
[337555136,1725809439758,-447.0,0.00014841,2]
[337555137,1725809439770,-1260.0,0.00014841,2]
[337555138,1725809439780,-150.0,0.00014841,2]
[337555139,1725809439792,-7460.256,0.00014841,2]
[337555140,1725809439802,-5855.0,0.00014841,2]
[337555141,1725809439812,-102.67879455,0.0001485,2]
[337555142,1725809439825,-47.32120545,0.0001485,2]
[337555143,1725809439840,-303.86819,0.0001485,2]
[337555144,1725809439850,-61.02419044,0.00014872,2]
[337555145,1725809439863,-88.97580956,0.00014872,2]
[337555146,1725809439872,-230.6938944,0.00014874,2]
[337555147,1725809439882,-1302.21685321,0.0001488,3]
[337555148,1725809439894,-343.26358931,0.0001488,3]
[337555149,1725809439906,-9764.86946558,0.0001488,3]
[337555150,1725809439915,-150.0,0.00014888,2]
[337555151,1725809439925,-14230.3471,0.0001489,2]
[337555152,1725809439935,-817.3878,0.0001489,2]
[337555153,1725809439945,-4876.8228,0.0001489,2]
[337555154,1725809439959,-473.35251045,0.00014893,2]
[337555155,1725809439969,-473.35251044,0.00014897,2]
[337555156,1725809439979,-172.76901356,0.000149,2]
[337555157,1725809439989,-272.07680128,0.000149,2]
[337555158,1725809440000,-473.35251044,0.000149,2]
[337555159,1725809440010,-1042.03524093,0.000149,2]
[337555160,1725809440019,-192.27138866,0.000149,2]
[337555161,1725809440029,-1473.47458217,0.000149,2]
[337555162,1725809440039,-500.0,0.00014904,2]
[337555163,1725809440049,-500.0,0.00014904,2]
[337555164,1725809440059,-150.0,0.00014913,2]
[337555165,1725809440069,-150.0,0.00014928,2]
[337555166,1725809440079,-150.0,0.00014946,2]
[337555167,1725809440089,-150.0,0.00014952,2]
[337555168,1725809440099,-214.0,0.0001496,2]
[337555169,1725809440109,-500.0,0.00014969,2]
[337555170,1725809440119,-341.47763238,0.00014969,2]
[337555171,1725809440129,-500.0,0.00014969,2]
[337555172,1725809440139,-412.9949526,0.00014969,2]
[337555173,1725809440149,-5705.17495405,0.0001497,3]
[337555174,1725809440160,-500.0,0.00014973,2]
[337555175,1725809440169,-5705.17495405,0.00014973,3]
[337555176,1725809440180,-5705.17495405,0.0001498,3]
[337555177,1725809440190,-152.41,0.0001498,2]
[337555178,1725809440201,-1357.04604286,0.0001498,3]
[337555179,1725809440213,-1886.88,0.0001498,3]
[337555180,1725809440225,-12212.22040255,0.0001498,3]
[337555182,1725809440237,-878.53945113,0.0001498,3]
[337555190,1725809441043,-1447.08866371,0.0001498,3]
[337555191,1725809441054,-5577.9,0.0001498,3]
[337555192,1725809441065,-324.0204052,0.0001498,3]
[337555193,1725809441077,-360.1717,0.0001498,3]
[337555209,1725809441270,-10187.18305885,0.0001498,3]
[337555211,1725809441280,-11410.3499081,0.00014983,3]
[337555213,1725809441290,-178.48098312,0.00014986,2]
[337555215,1725809441299,-5705.17495405,0.00014989,3]
[337555217,1725809441309,-51346.5745865,0.0001499,3]
[337555219,1725809441319,-27437.9808961,0.0001499,3]
[337555221,1725809441329,-57051.7495405,0.0001499,3]
[337555223,1725809441338,-315536.780305,0.0001499,3]
[337555224,1725809441347,-152.41,0.0001499,2]
[337555226,1725809441357,-152.41,0.0001499,2]
[337555228,1725809441367,-152.41,0.0001499,2]
[337555230,1725809441376,-152.41,0.0001499,2]
[337555232,1725809441386,-23549.2045606,0.00014993,2]
[337555234,1725809441397,-534.9675364,0.00014993,2]
[337555236,1725809441407,-1176.3716916,0.00014993,2]
[337555238,1725809441416,-1029.5827648,0.00014993,2]
[337555239,1725809441426,-539.5460563,0.00014993,2]
[337555240,1725809441435,-1321.1894774,0.00014993,2]
[337555241,1725809441444,-358.0781449,0.00014993,2]
[337555242,1725809441456,-726.6923892,0.00014993,2]
[337555243,1725809441465,-500.0,0.00014999,2]
[337555244,1725809441475,-500.0,0.00014999,2]
[337555245,1725809441484,-500.0,0.00014999,2]
[337555246,1725809441494,-500.0,0.00014999,2]
[337555247,1725809441503,-500.0,0.00014999,2]
[337555248,1725809441513,-500.0,0.00014999,2]
[337555249,1725809441523,-500.0,0.00014999,2]
[337555250,1725809441534,-500.0,0.00014999,2]
[337555251,1725809441543,-836.36195427,0.00014999,2]
[337555252,1725809441553,-500.0,0.00014999,2]
[337555253,1725809441563,-500.0,0.00014999,2]
[337555254,1725809441573,-500.0,0.00014999,2]
[337555255,1725809441583,-794.24696768,0.00014999,2]
[337555256,1725809441592,-3448.4977529,0.00014999,2]
[337555257,1725809441602,-632.0,0.00014999,2]
[337555258,1725809441611,-101201.10053458,0.00015,2]
[337555259,1725809441621,-22671.64691877,0.00015,2]
[337555260,1725809441631,-66176.69268331,0.00015,2]
[337555261,1725809441644,-900.4367016,0.00015,2]
[337555262,1725809441657,-342.108,0.00015,2]
[337555263,1725809441668,-527.39556223,0.00015,2]
[337555264,1725809441679,-439.016,0.00015,2]
[337555265,1725809441703,-5843.81203055,0.00015,2]
[337555266,1725809441714,-1109.54057501,0.00015,2]
[337555267,1725809441726,-707.12336694,0.00015,2]
[337555268,1725809441738,-15607.50524251,0.00015,2]
[337555269,1725809441776,-1067.39875399,0.00015,2]
[337555270,1725809441788,-387.72733961,0.00015,2]
[337555271,1725809441799,-4905.37844259,0.00015,2]
[337555272,1725809441810,-1391.73850551,0.00015,2]
[337555273,1725809441823,-2961.95,0.00015,2]
[337555274,1725809441834,-298.31412405,0.00015,2]
[337555275,1725809441850,-18918.55938786,0.00015,2]
[337555276,1725809441865,-10860.6,0.00015,2]
[337555277,1725809441879,-352.75909744,0.00015,2]
[337555278,1725809441890,-337.88919499,0.00015,2]
[337555279,1725809441922,-4868.62476577,0.00015,2]
[337555290,1725809443505,-500.0,0.00014969,2]
[337555291,1725809443515,-500.0,0.00014969,2]
[337555292,1725809443525,-470.94279253,0.00014969,2]
[337555293,1725809443534,-500.0,0.00014969,2]
[337555294,1725809443544,-252807.63904557,0.00015,2]
[337555295,1725809443599,-854.42,0.00014192,2]
[337555296,1725809443608,-3185808.21629798,0.00015,2]
[337555297,1725809443619,-1136.44,0.00015,2]
[337555298,1725809443643,-5425.41999999,0.00015,2]
[337555300,1725809444005,-511.149995,0.00015,2]
[337555301,1725809444016,-2847.45,0.00015,2]
[337555341,1725809446559,-151.04,0.00014192,2]
[337555343,1725809446568,-150.86,0.00014192,2]
[337555345,1725809446578,-1078.0,0.0001483,2]
[337555347,1725809446587,-44871.57416967,0.00015,2]
[337555373,1725809535622,-500.0,0.00012164,2]
[337555374,1725809535646,-500.0,0.00012164,2]
[337555375,1725809586389,500.0,0.00012164,2]
[337555376,1725809617526,500.0,0.00012164,2]
[337555377,1725809719253,223.83,0.00012192,2]
[337555378,1725809907584,500.0,0.00011068,2]
[337555379,1725809908305,500.0,0.00012164,2]
[337555380,1725809914798,7738.0,0.000125,7]
[337555381,1725809965947,158.29,0.00010959,2]
[337555382,1725810152089,750.0,0.00011,2]
[337555383,1725810343575,248.66,0.00011086,2]
[337555384,1725810465961,197.9,0.00010959,2]
[337555396,1725810631587,-537.6,0.00013047,2]
[337555397,1725810631597,-504.85,0.00013047,2]
[337555398,1725810631607,-457.55,0.0001305,2]
[337555399,1725810631620,-1091.4,0.0001305,2]
[337555400,1725810631631,-385.38718249,0.00013056,2]
[337555401,1725810631642,-118.66281751,0.00013056,2]
[337555402,1725810631651,-159.0,0.00013278,2]
[337555403,1725810631661,-248.66,0.0001335,2]
[337555404,1725810631671,-300.0,0.00013516,2]
[337555405,1725810631680,-171.62,0.00013517,2]
[337555406,1725810631690,-2120.72273249,0.00013517,2]
[337555407,1725810631769,-704.44521573,0.00013517,2]
[337555408,1725810631782,-299.25245189,0.00013517,2]
[337555409,1725810631831,-1012.2128544,0.00013517,2]
[337555410,1725810631899,-46.28674549,0.00013517,2]
[337555411,1725810631909,-545.64,0.00013606,2]
[337555412,1725810631919,-545.64,0.0001361,2]
[337555413,1725810631929,-545.64,0.00013613,2]
[337555414,1725810631939,-545.64,0.00013617,2]
[337555415,1725810631949,-545.64,0.0001362,2]
[337555416,1725810631958,-545.64,0.00013624,2]
[337555417,1725810631968,-545.64,0.00013628,2]
[337555418,1725810631977,-349.5,0.00013628,2]
[337555420,1725810631987,-545.64,0.00013631,2]
[337555422,1725810631997,-545.64,0.00013635,2]
[337555424,1725810632007,-545.64,0.00013638,2]
[337555426,1725810632017,-545.64,0.00013642,2]
[337555428,1725810632026,-545.64,0.00013645,2]
[337555430,1725810632035,-545.64,0.00013649,2]
[337555432,1725810632046,-545.64,0.00013653,2]
[337555434,1725810632056,-545.64,0.00013656,2]
[337555436,1725810632067,-545.64,0.0001366,2]
[337555438,1725810632076,-545.64,0.00013663,2]
[337555440,1725810632086,-545.64,0.00013667,2]
[337555442,1725810632096,-545.64,0.00013671,2]
[337555444,1725810632105,-150.0,0.00013671,2]
[337555446,1725810632116,-545.64,0.00013674,2]
[337555448,1725810632126,-313.40729783,0.00013675,7]
[337555450,1725810632136,-250.0,0.00013675,2]
[337555452,1725810632146,-200.0,0.00013699,2]
[337555454,1725810632156,-2669.51619144,0.00013699,2]
[337555456,1725810632169,-81.48380856,0.00013699,2]
[337555458,1725810632179,-150.57,0.00013699,2]
[337555460,1725810632190,-215.85,0.00013699,2]
[337555462,1725810632199,-500.0,0.00013699,2]
[337555464,1725810632210,-140.79766498,0.0001373,2]
[337555524,1725810632803,-359.20233502,0.0001373,2]
[337555526,1725810632813,-500.0,0.00013808,2]
[337555527,1725810632823,-174.37,0.00013853,2]
[337555529,1725810632832,-2368.03,0.0001388,2]
[337555531,1725810632841,-462.4,0.0001389,2]